fUST/lending_fUST_20240913
["ID","MTS","AMOUNT","RATE_DAILY","PERIOD"]
[337855036,1726159839585,-500.0,0.00016427,2]
[337855037,1726159839595,-500.0,0.00016427,2]
[337855038,1726159839604,-500.0,0.00016427,2]
[337855039,1726159839614,-500.0,0.00016427,2]
[337855040,1726159839625,-500.0,0.00016427,2]
[337855041,1726159839634,-500.0,0.00016427,2]
[337855042,1726159839643,-500.0,0.00016427,2]
[337855043,1726159839652,-500.0,0.00016427,2]
[337855044,1726159839662,-500.0,0.00016427,2]
[337855045,1726159839671,-500.0,0.00016427,2]
[337855046,1726159839681,-401.04309548,0.00016427,2]
[337855047,1726159839692,-606.75141434,0.00016427,2]
[337855048,1726159839702,-434.42313077,0.00016427,2]
[337855049,1726159839711,-500.0,0.00016427,2]
[337855050,1726159839721,-259.66181316,0.00016427,2]
[337855051,1726159839731,-500.0,0.00016427,2]
[337855053,1726159839740,-500.0,0.00016427,2]
[337855054,1726159839751,-500.0,0.00016427,2]
[337855056,1726159839760,-500.0,0.00016427,2]
[337855057,1726159839770,-500.0,0.00016427,2]
[337855058,1726159839779,-500.0,0.00016427,2]
[337855059,1726159839789,-500.0,0.00016427,2]
[337855060,1726159839798,-500.0,0.00016427,2]
[337855061,1726159839807,-500.0,0.00016427,2]
[337855062,1726159839816,-538.79818231,0.00016427,2]
[337855063,1726159839825,-180.53065875,0.00016427,2]
[337855064,1726159839834,-500.0,0.00016427,2]
[337855065,1726159839843,-500.0,0.00016427,2]
[337855067,1726159839852,-261.00455618,0.00016427,2]
[337855068,1726159839862,-209.46733499,0.00016427,2]
[337855069,1726159839872,-37240.16257372,0.00016428,2]
[337855070,1726159839884,-7050.57242246,0.00016428,2]
[337855074,1726159840355,-150.112235,0.000164,2]
[337855075,1726159840364,-122858.93904482,0.00016428,2]
[337855076,1726159840374,-53971.8576872,0.00016428,2]
[337855077,1726159840383,-62681.1277652,0.00016428,2]
[337855078,1726159840393,-26985.9288436,0.00016428,2]
[337855079,1726159840402,-1892.25089649,0.00016437,2]
[337855080,1726159840411,-150.01,0.00016437,2]
[337855081,1726159840421,-151.0,0.00016438,2]
[337855082,1726159840430,-151.0,0.00016438,2]
[337855083,1726159840439,-151.0,0.00016438,2]
[337855084,1726159840448,-151.0,0.00016438,2]
[337855085,1726159840457,-151.0,0.00016438,2]
[337855086,1726159840466,-151.163829,0.00016438,2]
[337855087,1726159840475,-500.0,0.00016438,2]
[337855088,1726159840485,-500.0,0.00016438,2]
[337855089,1726159840494,-500.0,0.00016438,2]
[337855090,1726159840504,-500.0,0.00016438,2]
[337855091,1726159840514,-500.0,0.00016438,2]
[337855092,1726159840523,-500.0,0.00016438,2]
[337855093,1726159840533,-186.83150718,0.00016438,2]
[337855094,1726159840544,-500.0,0.00016438,2]
[337855095,1726159840555,-500.0,0.00016438,2]
[337855096,1726159840565,-500.0,0.00016438,2]
[337855097,1726159840576,-500.0,0.00016438,2]
[337855098,1726159840586,-1052.8,0.00016438,2]
[337855099,1726159840596,-500.0,0.00016438,2]
[337855100,1726159840605,-539.70705304,0.00016438,2]
[337855101,1726159840616,-500.0,0.00016438,2]
[337855102,1726159840626,-500.0,0.00016438,2]
[337855103,1726159840634,-500.0,0.00016438,2]
[337855104,1726159840643,-500.0,0.00016438,2]
[337855105,1726159840655,-600.89222253,0.00016438,2]
[337855106,1726159840664,-500.0,0.00016438,2]
[337855107,1726159840674,-500.0,0.00016438,2]
[337855108,1726159840683,-500.0,0.00016438,2]
[337855109,1726159840694,-500.0,0.00016438,2]
[337855110,1726159840703,-500.0,0.00016438,2]
[337855111,1726159840712,-514.40433034,0.00016438,2]
[337855112,1726159840721,-500.0,0.00016438,2]
[337855113,1726159840730,-500.0,0.00016438,2]
[337855114,1726159840739,-500.0,0.00016438,2]
[337855115,1726159840748,-500.0,0.00016438,2]
[337855116,1726159840758,-500.0,0.00016438,2]
[337855117,1726159840767,-500.0,0.00016438,2]
[337855118,1726159840777,-327.48408718,0.00016438,2]
[337855119,1726159840786,-500.0,0.00016438,2]
[337855120,1726159840795,-500.0,0.00016438,2]
[337855121,1726159840804,-500.0,0.00016438,2]
[337855122,1726159840814,-500.0,0.00016438,2]
[337855123,1726159840823,-500.0,0.00016438,2]
[337855124,1726159840832,-500.0,0.00016438,2]
[337855125,1726159840842,-1065.62,0.00016438,2]
[337855126,1726159840851,-500.0,0.00016438,2]
[337855127,1726159840860,-683.33,0.00016438,2]
[337855128,1726159840869,-500.0,0.00016438,2]
[337855129,1726159840879,-500.0,0.00016438,2]
[337855130,1726159840889,-500.0,0.00016438,2]
[337855131,1726159840898,-500.0,0.00016438,2]
[337855132,1726159840908,-500.0,0.00016438,2]
[337855133,1726159840917,-500.0,0.00016438,2]
[337855134,1726159840926,-500.0,0.00016438,2]
[337855135,1726159840935,-500.0,0.00016438,2]
[337855136,1726159840944,-500.0,0.00016438,2]
[337855137,1726159840954,-500.0,0.00016438,2]
[337855138,1726159840963,-513.67154487,0.00016438,2]
[337855139,1726159840973,-500.0,0.00016438,2]
[337855140,1726159840982,-500.0,0.00016438,2]
[337855141,1726159840992,-500.0,0.00016438,2]
[337855142,1726159841003,-500.0,0.00016438,2]
[337855143,1726159841011,-500.0,0.00016438,2]
[337855144,1726159841021,-500.0,0.00016438,2]
[337855145,1726159841030,-553.98513278,0.00016438,2]
[337855146,1726159841039,-500.0,0.00016438,2]
[337855147,1726159841049,-500.0,0.00016438,2]
[337855148,1726159841058,-500.0,0.00016438,2]
[337855149,1726159841067,-500.0,0.00016438,2]
[337855150,1726159841077,-500.0,0.00016438,2]
[337855151,1726159841087,-516.55018641,0.00016438,2]
[337855152,1726159841096,-500.0,0.00016438,2]
[337855153,1726159841105,-500.0,0.00016438,2]
[337855154,1726159841114,-482.711662,0.00016438,2]
[337855155,1726159841124,-500.0,0.00016438,2]
[337855156,1726159841133,-500.0,0.00016438,2]
[337855157,1726159841142,-500.0,0.00016438,2]
[337855158,1726159841151,-500.0,0.00016438,2]
[337855159,1726159841160,-500.0,0.00016438,2]
[337855160,1726159841169,-500.0,0.00016438,2]
[337855161,1726159841179,-187.36790211,0.00016438,2]
[337855162,1726159841187,-500.0,0.00016438,2]
[337855163,1726159841197,-500.0,0.00016438,2]
[337855164,1726159841207,-500.0,0.00016438,2]
[337855165,1726159841216,-500.0,0.00016438,2]
[337855166,1726159841226,-500.0,0.00016438,2]
[337855167,1726159841235,-500.0,0.00016438,2]
[337855168,1726159841244,-183.05077952,0.00016438,2]
[337855169,1726159841255,-500.0,0.00016438,2]
[337855170,1726159841265,-500.0,0.00016438,2]
[337855171,1726159841274,-771.65,0.00016438,2]
[337855172,1726159841284,-500.0,0.00016438,2]
[337855173,1726159841294,-500.0,0.00016438,2]
[337855174,1726159841304,-500.0,0.00016438,2]
[337855175,1726159841313,-500.0,0.00016438,2]
[337855176,1726159841323,-500.0,0.00016438,2]
[337855177,1726159841333,-941.83,0.00016438,2]
[337855178,1726159841342,-500.0,0.00016438,2]
[337855179,1726159841351,-500.0,0.00016438,2]
[337855180,1726159841361,-500.0,0.00016438,2]
[337855181,1726159841371,-500.0,0.00016438,2]
[337855182,1726159841380,-500.0,0.00016438,2]
[337855183,1726159841389,-500.0,0.00016438,2]
[337855184,1726159841399,-500.0,0.00016438,2]
[337855185,1726159841408,-500.0,0.00016438,2]
[337855186,1726159841418,-500.0,0.00016438,2]
[337855187,1726159841427,-500.0,0.00016438,2]
[337855188,1726159841436,-500.0,0.00016438,2]
[337855189,1726159841445,-500.0,0.00016438,2]
[337855190,1726159841455,-500.0,0.00016438,2]
[337855191,1726159841464,-500.0,0.00016438,2]
[337855192,1726159841474,-500.0,0.00016438,2]
[337855193,1726159841484,-500.0,0.00016438,2]
[337855194,1726159841494,-500.0,0.00016438,2]
[337855195,1726159841506,-500.0,0.00016438,2]
[337855196,1726159841515,-500.0,0.00016438,2]
[337855197,1726159841525,-500.0,0.00016438,2]
[337855198,1726159841534,-500.0,0.00016438,2]
[337855199,1726159841543,-500.0,0.00016438,2]
[337855200,1726159841554,-500.0,0.00016438,2]
[337855201,1726159841563,-500.0,0.00016438,2]
[337855202,1726159841574,-500.0,0.00016438,2]
[337855203,1726159841583,-500.0,0.00016438,2]
[337855204,1726159841593,-500.0,0.00016438,2]
[337855205,1726159841602,-500.0,0.00016438,2]
[337855206,1726159841612,-500.0,0.00016438,2]
[337855207,1726159841625,-540.54,0.00016438,2]
[337855208,1726159841635,-583.98,0.00016438,2]
[337855209,1726159841645,-500.0,0.00016438,2]
[337855210,1726159841655,-506.6441311,0.00016438,2]
[337855211,1726159841667,-500.0,0.00016438,2]
[337855212,1726159841676,-500.0,0.00016438,2]
[337855213,1726159841687,-885.11,0.00016438,2]
[337855214,1726159841697,-500.0,0.00016438,2]
[337855215,1726159841707,-500.0,0.00016438,2]
[337855216,1726159841716,-500.0,0.00016438,2]
[337855217,1726159841726,-500.0,0.00016438,2]
[337855218,1726159841736,-500.0,0.00016438,2]
[337855219,1726159841745,-500.0,0.00016438,2]
[337855220,1726159841756,-897.73,0.00016438,2]
[337855221,1726159841766,-182.62023046,0.00016438,2]
[337855222,1726159841776,-500.0,0.00016438,2]
[337855223,1726159841786,-500.0,0.00016438,2]
[337855224,1726159841795,-500.0,0.00016438,2]
[337855225,1726159841805,-500.0,0.00016438,2]
[337855226,1726159841814,-500.0,0.00016438,2]
[337855227,1726159841823,-492.05993453,0.00016438,2]
[337855228,1726159841832,-500.0,0.00016438,2]
[337855229,1726159841842,-500.0,0.00016438,2]
[337855230,1726159841852,-500.0,0.00016438,2]
[337855231,1726159841862,-500.0,0.00016438,2]
[337855232,1726159841871,-500.0,0.00016438,2]
[337855233,1726159841880,-759.48,0.00016438,2]
[337855234,1726159841890,-500.0,0.00016438,2]
[337855235,1726159841899,-500.0,0.00016438,2]
[337855236,1726159841909,-500.0,0.00016438,2]
[337855237,1726159841919,-500.0,0.00016438,2]
[337855238,1726159841928,-500.0,0.00016438,2]
[337855239,1726159841938,-1085.49,0.00016438,2]
[337855240,1726159841947,-500.0,0.00016438,2]
[337855241,1726159841957,-500.0,0.00016438,2]
[337855242,1726159841967,-713.06,0.00016438,2]
[337855243,1726159841976,-500.0,0.00016438,2]
[337855244,1726159841985,-500.0,0.00016438,2]
[337855245,1726159841994,-502.82304555,0.00016438,2]
[337855246,1726159842005,-500.0,0.00016438,2]
[337855247,1726159842014,-500.0,0.00016438,2]
[337855248,1726159842024,-500.0,0.00016438,2]
[337855249,1726159842033,-500.0,0.00016438,2]
[337855250,1726159842042,-500.0,0.00016438,2]
[337855251,1726159842051,-525.41445975,0.00016438,2]
[337855252,1726159842061,-500.0,0.00016438,2]
[337855253,1726159842070,-181.5,0.00016438,2]
[337855254,1726159842079,-838.34,0.00016438,2]
[337855255,1726159842088,-500.0,0.00016438,2]
[337855256,1726159842097,-500.0,0.00016438,2]
[337855257,1726159842106,-500.0,0.00016438,2]
[337855258,1726159842115,-500.0,0.00016438,2]
[337855259,1726159842126,-660.29,0.00016438,2]
[337855260,1726159842135,-1000.0,0.00016438,2]
[337855261,1726159842144,-1000.0,0.00016438,2]
[337855262,1726159842154,-1000.0,0.00016438,2]
[337855263,1726159842163,-1000.0,0.00016438,2]
[337855264,1726159842173,-1000.0,0.00016438,2]
[337855265,1726159842182,-500.0,0.00016438,2]
[337855266,1726159842191,-1000.0,0.00016438,2]
[337855267,1726159842200,-1000.0,0.00016438,2]
[337855268,1726159842210,-1000.0,0.00016438,2]
[337855269,1726159842219,-1000.0,0.00016438,2]
[337855270,1726159842228,-1000.0,0.00016438,2]
[337855271,1726159842237,-1193.08,0.00016438,2]
[337855272,1726159842246,-1000.0,0.00016438,2]
[337855273,1726159842257,-1000.0,0.00016438,2]
[337855274,1726159842266,-500.0,0.00016438,2]
[337855275,1726159842276,-1000.0,0.00016438,2]
[337855276,1726159842285,-1000.0,0.00016438,2]
[337855277,1726159842295,-1000.0,0.00016438,2]
[337855278,1726159842304,-1000.0,0.00016438,2]
[337855279,1726159842314,-679.822194,0.00016438,2]
[337855280,1726159842323,-500.0,0.00016438,2]
[337855281,1726159842332,-928.56,0.00016438,2]
[337855282,1726159842341,-500.0,0.00016438,2]
[337855283,1726159842351,-524.06835872,0.00016438,2]
[337855284,1726159842360,-500.0,0.00016438,2]
[337855285,1726159842370,-500.0,0.00016438,2]
[337855286,1726159842379,-500.0,0.00016438,2]
[337855287,1726159842388,-500.0,0.00016438,2]
[337855288,1726159842397,-500.0,0.00016438,2]
[337855289,1726159842407,-500.0,0.00016438,2]
[337855290,1726159842416,-500.0,0.00016438,2]
[337855291,1726159842426,-835.91,0.00016438,2]
[337855292,1726159842435,-500.0,0.00016438,2]
[337855293,1726159842444,-500.0,0.00016438,2]
[337855294,1726159842454,-500.0,0.00016438,2]
[337855295,1726159842463,-500.0,0.00016438,2]
[337855296,1726159842472,-500.0,0.00016438,2]
[337855297,1726159842483,-500.0,0.00016438,2]
[337855298,1726159842492,-500.0,0.00016438,2]
[337855299,1726159842503,-503.03470967,0.00016438,2]
[337855300,1726159842514,-500.0,0.00016438,2]
[337855301,1726159842523,-506.18301708,0.00016438,2]
[337855302,1726159842532,-500.0,0.00016438,2]
[337855303,1726159842542,-500.0,0.00016438,2]
[337855304,1726159842551,-500.0,0.00016438,2]
[337855305,1726159842561,-529.70317225,0.00016438,2]
[337855306,1726159842570,-500.0,0.00016438,2]
[337855307,1726159842579,-500.0,0.00016438,2]
[337855308,1726159842589,-500.0,0.00016438,2]
[337855309,1726159842599,-500.0,0.00016438,2]
[337855310,1726159842609,-500.0,0.00016438,2]
[337855311,1726159842623,-500.0,0.00016438,2]
[337855312,1726159842633,-500.0,0.00016438,2]
[337855313,1726159842642,-500.0,0.00016438,2]
[337855314,1726159842651,-500.0,0.00016438,2]
[337855315,1726159842661,-500.0,0.00016438,2]
[337855316,1726159842670,-500.0,0.00016438,2]
[337855317,1726159842679,-500.0,0.00016438,2]
[337855318,1726159842688,-500.0,0.00016438,2]
[337855319,1726159842701,-512.03,0.00016438,2]
[337855320,1726159842712,-500.0,0.00016438,2]
[337855322,1726159842722,-500.0,0.00016438,2]
[337855324,1726159842732,-500.0,0.00016438,2]
[337855325,1726159842741,-500.0,0.00016438,2]
[337855326,1726159842751,-500.0,0.00016438,2]
[337855327,1726159842761,-500.0,0.00016438,2]
[337855328,1726159842770,-500.0,0.00016438,2]
[337855329,1726159842779,-500.0,0.00016438,2]
[337855330,1726159842789,-500.0,0.00016438,2]
[337855331,1726159842799,-500.0,0.00016438,2]
[337855332,1726159842808,-500.0,0.00016438,2]
[337855333,1726159842818,-500.0,0.00016438,2]
[337855334,1726159842828,-500.0,0.00016438,2]
[337855336,1726159842837,-500.0,0.00016438,2]
[337855337,1726159842846,-500.0,0.00016438,2]
[337855338,1726159842856,-500.0,0.00016438,2]
[337855339,1726159842865,-500.0,0.00016438,2]
[337855340,1726159842874,-500.0,0.00016438,2]
[337855341,1726159842883,-500.0,0.00016438,2]
[337855343,1726159842893,-500.0,0.00016438,2]
[337855345,1726159842902,-1266.01,0.00016438,2]
[337855346,1726159842912,-903.22,0.00016438,2]
[337855347,1726159842922,-500.0,0.00016438,2]
[337855348,1726159842932,-500.0,0.00016438,2]
[337855349,1726159842941,-500.0,0.00016438,2]
[337855350,1726159842951,-500.0,0.00016438,2]
[337855352,1726159842960,-500.0,0.00016438,2]
[337855354,1726159842970,-500.0,0.00016438,2]
[337855356,1726159842980,-502.32175449,0.00016438,2]
[337855358,1726159842989,-500.0,0.00016438,2]
[337855360,1726159842999,-500.0,0.00016438,2]
[337855362,1726159843009,-500.0,0.00016438,2]
[337855365,1726159843162,-631.7517416,0.00016438,2]
[337855366,1726159843173,-500.0,0.00016438,2]
[337855367,1726159843182,-699.95,0.00016438,2]
[337855368,1726159843191,-500.0,0.00016438,2]
[337855369,1726159843201,-500.0,0.00016438,2]
[337855370,1726159843210,-500.0,0.00016438,2]
[337855371,1726159843222,-500.0,0.00016438,2]
[337855372,1726159843233,-500.0,0.00016438,2]
[337855373,1726159843243,-500.0,0.00016438,2]
[337855374,1726159843253,-500.0,0.00016438,2]
[337855375,1726159843262,-604.68045794,0.00016438,2]
[337855376,1726159843271,-500.0,0.00016438,2]
[337855377,1726159843280,-500.0,0.00016438,2]
[337855378,1726159843290,-500.0,0.00016438,2]
[337855379,1726159843299,-500.0,0.00016438,2]
[337855380,1726159843308,-500.0,0.00016438,2]
[337855381,1726159843318,-500.0,0.00016438,2]
[337855382,1726159843327,-500.0,0.00016438,2]
[337855383,1726159843336,-510.24668391,0.00016438,2]
[337855384,1726159843346,-500.0,0.00016438,2]
[337855385,1726159843355,-500.0,0.00016438,2]
[337855386,1726159843365,-500.0,0.00016438,2]
[337855387,1726159843374,-500.0,0.00016438,2]
[337855388,1726159843383,-500.0,0.00016438,2]
[337855389,1726159843393,-969.2,0.00016438,2]
[337855390,1726159843402,-500.0,0.00016438,2]
[337855391,1726159843411,-500.0,0.00016438,2]
[337855392,1726159843420,-500.0,0.00016438,2]
[337855393,1726159843430,-500.0,0.00016438,2]
[337855394,1726159843440,-500.0,0.00016438,2]
[337855395,1726159843450,-500.0,0.00016438,2]
[337855396,1726159843464,-500.0,0.00016438,2]
[337855397,1726159843474,-151.0,0.00016438,2]
[337855398,1726159843483,-151.0,0.00016438,2]
[337855399,1726159843493,-151.0,0.00016438,2]
[337855400,1726159843503,-151.0,0.00016438,2]
[337855401,1726159843514,-698.47,0.00016438,2]
[337855402,1726159843523,-151.0,0.00016438,2]
[337855403,1726159843533,-500.0,0.00016438,2]
[337855404,1726159843543,-500.0,0.00016438,2]
[337855405,1726159843552,-151.0,0.00016438,2]
[337855406,1726159843561,-500.0,0.00016438,2]
[337855407,1726159843570,-151.0,0.00016438,2]
[337855408,1726159843579,-153.663664,0.00016438,2]
[337855409,1726159843588,-500.0,0.00016438,2]
[337855410,1726159843600,-508.23787809,0.00016438,2]
[337855411,1726159843610,-500.0,0.00016438,2]
[337855412,1726159843623,-500.0,0.00016438,2]
[337855413,1726159843632,-503.57223232,0.00016438,2]
[337855414,1726159843642,-500.0,0.00016438,2]
[337855415,1726159843651,-500.0,0.00016438,2]
[337855416,1726159843661,-500.0,0.00016438,2]
[337855417,1726159843670,-567.06,0.00016438,2]
[337855418,1726159843680,-500.0,0.00016438,2]
[337855419,1726159843689,-500.0,0.00016438,2]
[337855420,1726159843700,-500.0,0.00016438,2]
[337855421,1726159843709,-507.69795907,0.00016438,2]
[337855422,1726159843719,-500.0,0.00016438,2]
[337855423,1726159843728,-500.0,0.00016438,2]
[337855424,1726159843738,-500.0,0.00016438,2]
[337855425,1726159843748,-500.0,0.00016438,2]
[337855426,1726159843760,-500.0,0.00016438,2]
[337855427,1726159843770,-500.0,0.00016438,2]
[337855428,1726159843779,-500.0,0.00016438,2]
[337855429,1726159843788,-1748.16,0.00016438,2]
[337855430,1726159843798,-502.44683807,0.00016438,2]
[337855431,1726159843809,-500.0,0.00016438,2]
[337855432,1726159843820,-500.0,0.00016438,2]
[337855433,1726159843830,-500.0,0.00016438,2]
[337855434,1726159843843,-500.0,0.00016438,2]
[337855435,1726159843853,-500.0,0.00016438,2]
[337855436,1726159843864,-500.0,0.00016438,2]
[337855437,1726159843875,-500.0,0.00016438,2]
[337855438,1726159843884,-500.0,0.00016438,2]
[337855439,1726159843893,-500.0,0.00016438,2]
[337855440,1726159843902,-500.0,0.00016438,2]
[337855441,1726159843912,-1014.4,0.00016438,2]
[337855442,1726159843921,-500.0,0.00016438,2]
[337855443,1726159843931,-500.0,0.00016438,2]
[337855444,1726159843940,-785.68,0.00016438,2]
[337855445,1726159843950,-1143.28,0.00016438,2]
[337855446,1726159843959,-500.0,0.00016438,2]
[337855447,1726159843968,-500.0,0.00016438,2]
[337855448,1726159843977,-500.0,0.00016438,2]
[337855449,1726159843987,-500.0,0.00016438,2]
[337855450,1726159843996,-302.96731574,0.00016438,2]
[337855451,1726159844503,2628.6050715,0.0001558,2]
[337855471,1726159962493,542.75892342,0.00027397,120]
[337855474,1726160165574,415.450019,0.00013699,2]
[337855477,1726160188964,159.519231,0.00015513,2]
[337855478,1726160189213,159.519231,0.0001558,2]
[337855479,1726160189425,159.519231,0.00015647,2]
[337855480,1726160189874,159.519231,0.00015715,2]
[337855481,1726160190108,159.519231,0.00015782,2]
[337855482,1726160190356,159.519231,0.00015849,2]
[337855483,1726160190625,159.519231,0.00015917,2]
[337855484,1726160190885,159.519231,0.00015984,2]
[337855507,1726160400660,55210.22171467,0.00015952,2]
[337855513,1726160690427,407.253125,0.00013699,2]
[337855516,1726160729140,1783.7792803,0.00015292,2]
[337855517,1726160736130,-159.519231,0.00016051,2]
[337855518,1726160736157,-159.519231,0.00016119,2]
[337855519,1726160736179,-188.61413699,0.00016162,2]
[337855520,1726160736201,-159.519231,0.00016186,2]
[337855521,1726160736223,-150.0,0.00016228,2]
[337855522,1726160736245,-159.519231,0.00016254,2]
[337855523,1726160736266,-79.71799659,0.00016268,2]
[337855526,1726160792103,-237.29884439,0.00016268,2]
[337855529,1726160827136,-5144.93080566,0.00016268,2]
[337855530,1726160827156,-270.49483977,0.00016279,2]
[337855531,1726160833020,163.939485,0.00015461,2]
[337855533,1726160844118,-163.939485,0.00016267,2]
[337855534,1726160844140,-876.01332852,0.00016279,2]
[337855536,1726160852098,-1253.93183171,0.00016279,2]
[337855537,1726160852120,-300.0,0.00016319,2]
[337855538,1726160852142,-300.0,0.00016319,2]
[337855539,1726160852164,-461.94418869,0.0001632,2]
[337855540,1726160853101,-500.67977918,0.0001632,2]
[337855574,1726161020911,177.894862,0.00015348,2]
[337855575,1726161021113,177.894862,0.00015374,2]
[337855576,1726161021335,177.894862,0.00015399,2]
[337855577,1726161021568,177.894862,0.00015425,2]
[337855589,1726161032581,-37.37603213,0.0001632,2]
[337855590,1726161032591,-772.59537763,0.0001632,2]
[337855591,1726161032602,-209.88412859,0.0001632,2]
[337855592,1726161032612,-733.61959976,0.00016328,2]
[337855593,1726161032621,-733.61959975,0.00016331,2]
[337855594,1726161032631,-733.61959975,0.00016333,2]
[337855595,1726161032641,-733.61959975,0.00016336,2]
[337855596,1726161032650,-733.61959975,0.00016338,2]
[337855597,1726161032660,-1568.70630135,0.00016338,2]
[337855598,1726161032671,-300.0,0.00016399,2]
[337855599,1726161032681,-150.112233,0.000164,2]
[337855600,1726161032690,-150.112233,0.000164,2]
[337855601,1726161032700,-150.112233,0.000164,2]
[337855602,1726161032710,-150.112233,0.000164,2]
[337855603,1726161032719,-150.112233,0.000164,2]
[337855604,1726161032728,-3969.08897032,0.000164,2]
[337855605,1726161032738,-150.112233,0.000164,2]
[337855606,1726161032747,-150.112233,0.000164,2]
[337855607,1726161032756,-150.112233,0.000164,2]
[337855608,1726161032766,-238.471069,0.000164,2]
[337855609,1726161032775,-6710.83018144,0.0001641,2]
[337855619,1726161038426,-2525.16778478,0.0001641,2]
[337855623,1726161038536,-907.74942613,0.0001641,2]
[337855624,1726161038548,-473.21000055,0.0001641,2]
[337855827,1726161040479,-1731.19781452,0.0001641,2]
[337855835,1726161040537,-7409.55565208,0.0001641,2]
[337855837,1726161040547,-4405.19715033,0.0001641,2]
[337855839,1726161040559,-501.55,0.0001641,2]
[337855841,1726161040571,-1001.34756574,0.0001641,2]
[337855843,1726161040583,-863.46499483,0.0001641,2]
[337855846,1726161040594,-500.0,0.00016417,2]
[337855848,1726161040604,-500.0,0.00016417,2]
[337855850,1726161040613,-500.0,0.00016417,2]
[337855852,1726161040623,-500.0,0.00016417,2]
[337855854,1726161040634,-500.0,0.00016417,2]
[337855856,1726161040644,-500.0,0.00016417,2]
[337855858,1726161040654,-228.84985385,0.00016417,2]
[337855861,1726161040669,-246.02970038,0.00016417,2]
[337855863,1726161040679,-500.0,0.00016417,2]
[337855865,1726161040688,-500.0,0.00016417,2]
[337855867,1726161040698,-59273.1325784,0.00016418,2]
[337855869,1726161040708,-20314.6791327,0.00016418,2]
[337855871,1726161040717,-304.09619154,0.00016419,2]
[337855873,1726161040727,-500.0,0.00016419,2]
[337855875,1726161040738,-424.72599004,0.00016419,2]
[337855877,1726161040748,-554.76186484,0.00016419,2]
[337855879,1726161040758,-500.0,0.00016419,2]
[337855881,1726161040768,-500.0,0.00016419,2]
[337855884,1726161040778,-500.0,0.00016419,2]
[337855886,1726161040788,-500.0,0.00016419,2]
[337855888,1726161040798,-85528.7727605,0.0001642,2]
[337855890,1726161040807,-19757.7108595,0.00016428,2]
[337855892,1726161040817,-6771.5597109,0.00016428,2]
[337855894,1726161040826,-151.0,0.00016428,2]
[337855896,1726161040835,-151.0,0.00016428,2]
[337855898,1726161040845,-118546.265157,0.00016428,2]
[337855900,1726161040855,-94801.8359526,0.00016428,2]
[337855902,1726161040866,-6771.5597109,0.00016428,2]
[337855904,1726161040875,-150.01,0.00016437,2]
[337855906,1726161040885,-1892.25089649,0.00016437,2]
[337855908,1726161040895,-160.0,0.00016437,2]
[337855910,1726161040906,-28782.45243278,0.00016438,3]
[337855913,1726161040916,-151.0,0.00016438,2]
[337855915,1726161040926,-151.0,0.00016438,2]
[337855917,1726161040936,-151.0,0.00016438,2]
[337855919,1726161040948,-151.0,0.00016438,2]
[337855921,1726161040957,-151.0,0.00016438,2]
[337855923,1726161040968,-151.0,0.00016438,2]